[Event "Titled Tuesday Blitz February 22 Late 2022"]
[White "Wu, Christopher"]
[Black "Golubenko, Valentina"]
[WhiteFideId "2040875"]
[BlackFideId "4501993"]
[WhiteElo "2659"]
[BlackElo "2164"]
[Result "0-1"]
[Round "01"]
[TimeControl "180+1"]
[Date "2022.02.23"]
[WhiteClock "0:00:02"]
[BlackClock "0:00:16"]

1. d4 {[%clk 0:02:57]}  Nf6 {[%clk 0:02:58]} 2. c4 {[%clk 0:02:57]}  g6 {[%clk 0:02:58]} 3. Nc3 {[%clk 0:02:56]}  c5 {[%clk 0:02:59]} 4. d5 {[%clk 0:02:55]}  d6 {[%clk 0:02:59]} 5. e4 {[%clk 0:02:55]}  Bg7 {[%clk 0:02:59]} 6. f4 {[%clk 0:02:56]}  O-O {[%clk 0:02:55]} 7. Nf3 {[%clk 0:02:54]}  e6 {[%clk 0:02:55]} 8. Bd3 {[%clk 0:02:51]}  exd5 {[%clk 0:02:55]} 9. cxd5 {[%clk 0:02:52]}  Re8 {[%clk 0:02:55]} 10. O-O {[%clk 0:02:52]}  a6 {[%clk 0:02:53]} 11. a4 {[%clk 0:02:52]}  c4 {[%clk 0:02:51]} 12. Bc2 {[%clk 0:02:50]}  Nbd7 {[%clk 0:02:48]} 13. Be3 {[%clk 0:02:39]}  Qc7 {[%clk 0:02:46]} 14. h3 {[%clk 0:02:35]}  b6 {[%clk 0:02:46]} 15. Bd4 {[%clk 0:02:26]}  Rb8 {[%clk 0:02:42]} 16. Qd2 {[%clk 0:02:15]}  b5 {[%clk 0:02:33]} 17. axb5 {[%clk 0:02:09]}  axb5 {[%clk 0:02:33]} 18. Ra7 {[%clk 0:02:07]}  Qd8 {[%clk 0:02:21]} 19. e5 {[%clk 0:02:03]}  b4 {[%clk 0:02:08]} 20. exf6 {[%clk 0:01:52]}  bxc3 {[%clk 0:02:08]} 21. bxc3 {[%clk 0:01:42]}  Nxf6 {[%clk 0:02:04]} 22. Ba4 {[%clk 0:01:18]}  Re7 {[%clk 0:01:45]} 23. Rxe7 {[%clk 0:01:08]}  Qxe7 {[%clk 0:01:45]} 24. Re1 {[%clk 0:01:09]}  Qc7 {[%clk 0:01:44]} 25. Bc6 {[%clk 0:00:56]}  Bf5 {[%clk 0:01:41]} 26. g4 {[%clk 0:00:52]}  Bd3 {[%clk 0:01:19]} 27. Qe3 {[%clk 0:00:44]}  Ne4 {[%clk 0:00:56]} 28. Bxg7 {[%clk 0:00:43]}  Kxg7 {[%clk 0:00:57]} 29. Qd4+ {[%clk 0:00:43]}  Kg8 {[%clk 0:00:54]} 30. Rxe4 {[%clk 0:00:42]}  Bxe4 {[%clk 0:00:53]} 31. Qxe4 {[%clk 0:00:43]}  Qb6+ {[%clk 0:00:49]} 32. Qd4 {[%clk 0:00:35]}  Qb1+ {[%clk 0:00:48]} 33. Kg2 {[%clk 0:00:29]}  Rb2+ {[%clk 0:00:43]} 34. Kg3 {[%clk 0:00:29]}  Qc2 {[%clk 0:00:40]} 35. Kh4 {[%clk 0:00:15]}  Qe2 {[%clk 0:00:34]} 36. Ng1 {[%clk 0:00:06]}  Qe1+ {[%clk 0:00:30]} 37. Kg5 {[%clk 0:00:06]}  h6+ {[%clk 0:00:23]} 38. Kf6 {[%clk 0:00:04]}  Qh4+ {[%clk 0:00:19]} 39. g5 {[%clk 0:00:04]}  Rf2 {[%clk 0:00:19]} 40. Ke7 {[%clk 0:00:02]}  Rxf4 {[%clk 0:00:19]} 41. Qb6 {[%clk 0:00:01]}  Re4+ {[%clk 0:00:18]} 42. Kxd6 {[%clk 0:00:02]}  Qf4+ {[%clk 0:00:18]} 43. Kc5 {[%clk 0:00:02]}  Qxg5 {[%clk 0:00:18]} 44. Qd8+ {[%clk 0:00:02]}  Qxd8 {[%clk 0:00:16]} 0-1


[Site "https://www.chess.com"]

[Event "Titled Tuesday Blitz February 22 Late 2022"]
[White "Yang, Kaiqi"]
[Black "Bortnyk, Olexandr"]
[WhiteFideId "8604398"]
[BlackFideId "14120828"]
[WhiteElo "2373"]
[BlackElo "2723"]
[Result "0-1"]
[Round "01"]
[TimeControl "180+1"]
[Date "2022.02.22"]
[WhiteClock "0:00:14"]
[BlackClock "0:00:20"]

1. c4 {[%clk 0:03:00]}  f5 {[%clk 0:02:58]} 2. g3 {[%clk 0:02:58]}  Nf6 {[%clk 0:02:59]} 3. Bg2 {[%clk 0:02:57]}  d6 {[%clk 0:02:59]} 4. d4 {[%clk 0:02:55]}  g6 {[%clk 0:02:59]} 5. Nh3 {[%clk 0:02:53]}  Bg7 {[%clk 0:02:56]} 6. O-O {[%clk 0:02:54]}  c6 {[%clk 0:02:52]} 7. Nc3 {[%clk 0:02:53]}  O-O {[%clk 0:02:52]} 8. d5 {[%clk 0:02:49]}  e5 {[%clk 0:02:49]} 9. dxe6 {[%clk 0:02:49]}  Bxe6 {[%clk 0:02:48]} 10. Bf4 {[%clk 0:02:37]}  Bxc4 {[%clk 0:02:44]} 11. Bxd6 {[%clk 0:02:27]}  Re8 {[%clk 0:02:43]} 12. b3 {[%clk 0:02:20]}  Ba6 {[%clk 0:02:38]} 13. Rc1 {[%clk 0:02:18]}  Nbd7 {[%clk 0:02:36]} 14. Nf4 {[%clk 0:02:09]}  Ne5 {[%clk 0:02:27]} 15. Bxe5 {[%clk 0:01:46]}  Rxe5 {[%clk 0:02:28]} 16. Qxd8+ {[%clk 0:01:46]}  Rxd8 {[%clk 0:02:27]} 17. Rfd1 {[%clk 0:01:47]}  Ree8 {[%clk 0:02:03]} 18. e3 {[%clk 0:01:35]}  Ng4 {[%clk 0:01:53]} 19. Na4 {[%clk 0:01:18]}  Bf8 {[%clk 0:01:34]} 20. h3 {[%clk 0:01:10]}  Ne5 {[%clk 0:01:24]} 21. Rxd8 {[%clk 0:01:02]}  Rxd8 {[%clk 0:01:25]} 22. Ne6 {[%clk 0:01:02]}  Rd2 {[%clk 0:01:13]} 23. Nxf8 {[%clk 0:01:02]}  Kxf8 {[%clk 0:01:13]} 24. Ra1 {[%clk 0:00:21]}  Nd3 {[%clk 0:00:58]} 25. f4 {[%clk 0:00:21]}  Rc2 {[%clk 0:00:46]} 26. Bf1 {[%clk 0:00:20]}  Nf2 {[%clk 0:00:30]} 27. Bxa6 {[%clk 0:00:19]}  Nxh3+ {[%clk 0:00:29]} 28. Kh1 {[%clk 0:00:19]}  bxa6 {[%clk 0:00:29]} 29. b4 {[%clk 0:00:18]}  Nf2+ {[%clk 0:00:28]} 30. Kg2 {[%clk 0:00:17]}  Ne4+ {[%clk 0:00:28]} 31. Kg1 {[%clk 0:00:17]}  Nxg3 {[%clk 0:00:28]} 32. Nc5 {[%clk 0:00:17]}  a5 {[%clk 0:00:25]} 33. Ne6+ {[%clk 0:00:17]}  Ke7 {[%clk 0:00:24]} 34. Nd4 {[%clk 0:00:18]}  Ne2+ {[%clk 0:00:23]} 35. Nxe2 {[%clk 0:00:15]}  Rxe2 {[%clk 0:00:24]} 36. bxa5 {[%clk 0:00:15]}  a6 {[%clk 0:00:21]} 37. Rc1 {[%clk 0:00:14]}  Kd6 {[%clk 0:00:20]} 38. Rd1+ {[%clk 0:00:14]}  Kc7 {[%clk 0:00:20]} 0-1


[Site "https://www.chess.com"]

[Event "Titled Tuesday Blitz February 22 Late 2022"]
[White "Yuan, Qingyu"]
[Black "Melaugh, Shane"]
[WhiteFideId "8609772"]
[BlackFideId "2509580"]
[WhiteElo "2359"]
[BlackElo "2000"]
[Result "1-0"]
[Round "01"]
[TimeControl "180+1"]
[Date "2022.02.23"]
[WhiteClock "0:00:13"]
[BlackClock "0:00:11"]

1. Nf3 {[%clk 0:03:00]}  Nc6 {[%clk 0:02:58]} 2. d4 {[%clk 0:03:00]}  d5 {[%clk 0:02:54]} 3. g3 {[%clk 0:03:00]}  Nf6 {[%clk 0:02:54]} 4. Bg2 {[%clk 0:03:00]}  Bf5 {[%clk 0:02:55]} 5. O-O {[%clk 0:02:55]}  Qd7 {[%clk 0:02:48]} 6. c4 {[%clk 0:02:50]}  e6 {[%clk 0:02:43]} 7. Nc3 {[%clk 0:02:35]}  dxc4 {[%clk 0:02:33]} 8. Qa4 {[%clk 0:02:35]}  Nb4 {[%clk 0:02:22]} 9. Qxd7+ {[%clk 0:01:56]}  Nxd7 {[%clk 0:02:23]} 10. Bf4 {[%clk 0:01:42]}  Bd6 {[%clk 0:02:06]} 11. Ne5 {[%clk 0:01:27]}  Bxe5 {[%clk 0:01:38]} 12. dxe5 {[%clk 0:01:12]}  c6 {[%clk 0:01:38]} 13. Rfd1 {[%clk 0:00:53]}  O-O-O {[%clk 0:00:50]} 14. Ne4 {[%clk 0:00:43]}  Bxe4 {[%clk 0:00:50]} 15. Bxe4 {[%clk 0:00:43]}  h6 {[%clk 0:00:50]} 16. Rac1 {[%clk 0:00:37]}  g5 {[%clk 0:00:49]} 17. Be3 {[%clk 0:00:32]}  Nxe5 {[%clk 0:00:49]} 18. a3 {[%clk 0:00:21]}  Nd5 {[%clk 0:00:48]} 19. Bxa7 {[%clk 0:00:21]}  b6 {[%clk 0:00:28]} 20. Bxd5 {[%clk 0:00:16]}  cxd5 {[%clk 0:00:29]} 21. Bxb6 {[%clk 0:00:17]}  Rd7 {[%clk 0:00:23]} 22. Bd4 {[%clk 0:00:15]}  f6 {[%clk 0:00:23]} 23. f4 {[%clk 0:00:09]}  gxf4 {[%clk 0:00:23]} 24. gxf4 {[%clk 0:00:09]}  Rg8+ {[%clk 0:00:24]} 25. Kh1 {[%clk 0:00:08]}  Ng4 {[%clk 0:00:14]} 26. h3 {[%clk 0:00:06]}  e5 {[%clk 0:00:15]} 27. Bg1 {[%clk 0:00:03]}  exf4 {[%clk 0:00:14]} 28. hxg4 {[%clk 0:00:04]}  Rxg4 {[%clk 0:00:14]} 29. Rc3 {[%clk 0:00:02]}  h5 {[%clk 0:00:12]} 30. Rh3 {[%clk 0:00:02]}  h4 {[%clk 0:00:12]} 31. b3 {[%clk 0:00:03]}  cxb3 {[%clk 0:00:11]} 32. Rxb3 {[%clk 0:00:03]}  Kd8 {[%clk 0:00:11]} 33. Rbd3 {[%clk 0:00:02]}  Rg5 {[%clk 0:00:10]} 34. Bf2 {[%clk 0:00:03]}  Ke8 {[%clk 0:00:09]} 35. Rd4 {[%clk 0:00:02]}  f3 {[%clk 0:00:08]} 36. exf3 {[%clk 0:00:02]}  Kf7 {[%clk 0:00:08]} 37. Bxh4 {[%clk 0:00:02]}  Rh5 {[%clk 0:00:08]} 38. R1d2 {[%clk 0:00:03]}  Ke6 {[%clk 0:00:09]} 39. Re2+ {[%clk 0:00:03]}  Kf7 {[%clk 0:00:07]} 40. Kg2 {[%clk 0:00:03]}  Ra7 {[%clk 0:00:06]} 41. Re3 {[%clk 0:00:03]}  Ra5 {[%clk 0:00:03]} 42. Bg3 {[%clk 0:00:03]}  Ra7 {[%clk 0:00:04]} 43. Red3 {[%clk 0:00:03]}  Rd7 {[%clk 0:00:04]} 44. Kf2 {[%clk 0:00:04]}  Ke6 {[%clk 0:00:05]} 45. Rh4 {[%clk 0:00:04]}  Rg5 {[%clk 0:00:05]} 46. Rh6 {[%clk 0:00:04]}  Rdg7 {[%clk 0:00:05]} 47. Bh4 {[%clk 0:00:03]}  Rg2+ {[%clk 0:00:05]} 48. Ke3 {[%clk 0:00:04]}  R7g5 {[%clk 0:00:06]} 49. Bxg5 {[%clk 0:00:04]}  Rxg5 {[%clk 0:00:06]} 50. Rh4 {[%clk 0:00:05]}  Re5+ {[%clk 0:00:07]} 51. Kd2 {[%clk 0:00:05]}  Rg5 {[%clk 0:00:07]} 52. Rhd4 {[%clk 0:00:05]}  Rg2+ {[%clk 0:00:07]} 53. Ke3 {[%clk 0:00:06]}  Rg5 {[%clk 0:00:05]} 54. Rxd5 {[%clk 0:00:06]}  Rxd5 {[%clk 0:00:06]} 55. Rxd5 {[%clk 0:00:07]}  Kxd5 {[%clk 0:00:07]} 56. Kf4 {[%clk 0:00:08]}  Kc4 {[%clk 0:00:07]} 57. Kf5 {[%clk 0:00:09]}  Kb3 {[%clk 0:00:07]} 58. Kxf6 {[%clk 0:00:09]}  Kxa3 {[%clk 0:00:08]} 59. f4 {[%clk 0:00:10]}  Kb4 {[%clk 0:00:09]} 60. f5 {[%clk 0:00:11]}  Kc5 {[%clk 0:00:10]} 61. Ke6 {[%clk 0:00:12]}  Kc6 {[%clk 0:00:10]} 62. f6 {[%clk 0:00:13]}  Kc7 {[%clk 0:00:11]} 63. Ke7 {[%clk 0:00:13]} 1-0


[Site "https://www.chess.com"]

[Event "Titled Tuesday Blitz February 22 Late 2022"]
[White "Zhou, Qiyu"]
[Black "Sharafiev, Azat"]
[WhiteFideId "505161"]
[BlackFideId "4186214"]
[WhiteElo "1925"]
[BlackElo "2299"]
[Result "0-1"]
[Round "01"]
[TimeControl "180+1"]
[Date "2022.02.23"]
[WhiteClock "0:00:02"]
[BlackClock "0:00:04"]

1. e4 {[%clk 0:03:00]}  c5 {[%clk 0:02:56]} 2. Nf3 {[%clk 0:02:59]}  e6 {[%clk 0:02:57]} 3. d4 {[%clk 0:03:00]}  cxd4 {[%clk 0:02:58]} 4. Nxd4 {[%clk 0:03:00]}  Nc6 {[%clk 0:02:59]} 5. Nc3 {[%clk 0:03:00]}  Qc7 {[%clk 0:02:59]} 6. Be3 {[%clk 0:02:59]}  a6 {[%clk 0:02:57]} 7. a3 {[%clk 0:02:59]}  Nf6 {[%clk 0:02:55]} 8. Bd3 {[%clk 0:02:59]}  d6 {[%clk 0:02:49]} 9. O-O {[%clk 0:02:56]}  Be7 {[%clk 0:02:47]} 10. f4 {[%clk 0:02:56]}  Nxd4 {[%clk 0:02:46]} 11. Bxd4 {[%clk 0:02:57]}  e5 {[%clk 0:02:47]} 12. Be3 {[%clk 0:02:56]}  Ng4 {[%clk 0:02:45]} 13. Nd5 {[%clk 0:02:44]}  Qc6 {[%clk 0:02:32]} 14. Qf3 {[%clk 0:01:51]}  Nxe3 {[%clk 0:02:20]} 15. Qxe3 {[%clk 0:01:52]}  exf4 {[%clk 0:02:16]} 16. Qxf4 {[%clk 0:01:49]}  Be6 {[%clk 0:02:15]} 17. c4 {[%clk 0:01:39]}  Bd8 {[%clk 0:02:00]} 18. Kh1 {[%clk 0:01:07]}  O-O {[%clk 0:01:58]} 19. Rad1 {[%clk 0:01:06]}  Rc8 {[%clk 0:01:43]} 20. b3 {[%clk 0:00:47]}  h6 {[%clk 0:01:27]} 21. Qg3 {[%clk 0:00:24]}  Bg5 {[%clk 0:00:50]} 22. Rf3 {[%clk 0:00:14]}  b5 {[%clk 0:00:23]} 23. Rdf1 {[%clk 0:00:14]}  bxc4 {[%clk 0:00:16]} 24. Bxc4 {[%clk 0:00:14]}  Qc5 {[%clk 0:00:16]} 25. h4 {[%clk 0:00:10]}  Bd8 {[%clk 0:00:15]} 26. a4 {[%clk 0:00:06]}  Qd4 {[%clk 0:00:15]} 27. Bxa6 {[%clk 0:00:03]}  Ra8 {[%clk 0:00:13]} 28. Bd3 {[%clk 0:00:02]}  Rb8 {[%clk 0:00:13]} 29. Bc4 {[%clk 0:00:02]}  Qxe4 {[%clk 0:00:13]} 30. Rf4 {[%clk 0:00:02]}  Qe5 {[%clk 0:00:13]} 31. Re1 {[%clk 0:00:02]}  Qb2 {[%clk 0:00:10]} 32. Ref1 {[%clk 0:00:01]}  Qe5 {[%clk 0:00:05]} 33. Re1 {[%clk 0:00:01]}  Qb2 {[%clk 0:00:05]} 34. Ref1 {[%clk 0:00:01]}  Kh8 {[%clk 0:00:05]} 35. Re1 {[%clk 0:00:01]}  Bxd5 {[%clk 0:00:04]} 36. Bxd5 {[%clk 0:00:02]}  Bf6 {[%clk 0:00:05]} 37. Ref1 {[%clk 0:00:02]}  Be5 {[%clk 0:00:05]} 38. Qg4 {[%clk 0:00:02]}  Bxf4 {[%clk 0:00:06]} 39. Qxf4 {[%clk 0:00:03]}  Qe5 {[%clk 0:00:06]} 40. Qxe5 {[%clk 0:00:03]}  dxe5 {[%clk 0:00:07]} 41. Rxf7 {[%clk 0:00:03]}  Rxf7 {[%clk 0:00:07]} 42. Bxf7 {[%clk 0:00:04]}  e4 {[%clk 0:00:08]} 43. Bc4 {[%clk 0:00:04]}  e3 {[%clk 0:00:08]} 44. Kg1 {[%clk 0:00:05]}  e2 {[%clk 0:00:07]} 45. Kf2 {[%clk 0:00:06]}  Re8 {[%clk 0:00:08]} 46. Bxe2 {[%clk 0:00:06]}  Re4 {[%clk 0:00:08]} 47. g3 {[%clk 0:00:06]}  Re5 {[%clk 0:00:08]} 48. Bc4 {[%clk 0:00:06]}  Kh7 {[%clk 0:00:07]} 49. Kf3 {[%clk 0:00:07]}  g5 {[%clk 0:00:07]} 50. hxg5 {[%clk 0:00:07]}  hxg5 {[%clk 0:00:08]} 51. Kg4 {[%clk 0:00:07]}  Kh6 {[%clk 0:00:08]} 52. Kf3 {[%clk 0:00:06]}  Kg6 {[%clk 0:00:08]} 53. b4 {[%clk 0:00:05]}  Re1 {[%clk 0:00:07]} 54. Bd5 {[%clk 0:00:02]}  Ra1 {[%clk 0:00:05]} 55. a5 {[%clk 0:00:02]}  Ra4 {[%clk 0:00:05]} 56. b5 {[%clk 0:00:02]}  Rxa5 {[%clk 0:00:05]} 57. Bc6 {[%clk 0:00:03]}  Ra3+ {[%clk 0:00:04]} 58. Kf2 {[%clk 0:00:01]}  Rb3 {[%clk 0:00:04]} 59. Kg2 {[%clk 0:00:01]}  Kf5 {[%clk 0:00:04]} 60. Kf2 {[%clk 0:00:01]}  Kg4 {[%clk 0:00:03]} 61. Bd7+ {[%clk 0:00:02]}  Kh5 {[%clk 0:00:04]} 62. Bc6 {[%clk 0:00:03]}  Kg6 {[%clk 0:00:04]} 63. Bd7 {[%clk 0:00:03]}  Kf6 {[%clk 0:00:04]} 64. Bc6 {[%clk 0:00:03]}  Ke5 {[%clk 0:00:04]} 65. Bd7 {[%clk 0:00:03]}  Kd4 {[%clk 0:00:04]} 66. Bc6 {[%clk 0:00:04]}  g4 {[%clk 0:00:04]} 67. Bd7 {[%clk 0:00:03]}  Rb2+ {[%clk 0:00:04]} 68. Kf1 {[%clk 0:00:03]}  Ke3 {[%clk 0:00:04]} 69. Kg1 {[%clk 0:00:02]}  Kf3 {[%clk 0:00:04]} 70. Bc6+ {[%clk 0:00:02]} 0-1


[Site "https://www.chess.com"]

[Event "Titled Tuesday Blitz February 22 Late 2022"]
[White "Abdyzhapar, Asylbek"]
[Black "Bluebaum, Matthias"]
[WhiteFideId "13800337"]
[BlackFideId "24651516"]
[WhiteElo "2560"]
[BlackElo "2831"]
[Result "0-1"]
[Round "02"]
[TimeControl "180+1"]
[Date "2022.02.23"]
[WhiteClock "0:01:19"]
[BlackClock "0:00:20"]

1. c4 {[%clk 0:03:00]}  e6 {[%clk 0:02:58]} 2. g3 {[%clk 0:03:01]}  d5 {[%clk 0:02:58]} 3. Bg2 {[%clk 0:03:01]}  Nf6 {[%clk 0:02:59]} 4. Nf3 {[%clk 0:03:01]}  dxc4 {[%clk 0:02:59]} 5. O-O {[%clk 0:03:02]}  a6 {[%clk 0:02:59]} 6. a4 {[%clk 0:03:02]}  Nc6 {[%clk 0:02:59]} 7. Na3 {[%clk 0:03:01]}  Na5 {[%clk 0:02:57]} 8. Qc2 {[%clk 0:02:56]}  Qd5 {[%clk 0:02:55]} 9. Rd1 {[%clk 0:02:53]}  Bd7 {[%clk 0:02:45]} 10. d3 {[%clk 0:02:53]}  cxd3 {[%clk 0:02:39]} 11. Rxd3 {[%clk 0:02:53]}  Qc5 {[%clk 0:02:06]} 12. Rc3 {[%clk 0:02:52]}  Qf5 {[%clk 0:02:06]} 13. Qxf5 {[%clk 0:02:45]}  exf5 {[%clk 0:02:07]} 14. Rxc7 {[%clk 0:02:45]}  Bd6 {[%clk 0:02:04]} 15. Rc2 {[%clk 0:02:28]}  Bxa4 {[%clk 0:01:23]} 16. Rc3 {[%clk 0:02:08]}  Ne4 {[%clk 0:01:08]} 17. Nc4 {[%clk 0:02:07]}  Nxc4 {[%clk 0:01:05]} 18. Rxc4 {[%clk 0:02:06]}  Bb5 {[%clk 0:01:05]} 19. Rc2 {[%clk 0:02:03]}  Bc5 {[%clk 0:01:00]} 20. e3 {[%clk 0:01:57]}  Bd3 {[%clk 0:00:59]} 21. Rxc5 {[%clk 0:01:50]}  Nxc5 {[%clk 0:01:00]} 22. Nd4 {[%clk 0:01:49]}  Be4 {[%clk 0:01:00]} 23. Bf1 {[%clk 0:01:48]}  O-O {[%clk 0:00:58]} 24. b4 {[%clk 0:01:48]}  Ne6 {[%clk 0:00:53]} 25. f3 {[%clk 0:01:43]}  Nxd4 {[%clk 0:00:53]} 26. fxe4 {[%clk 0:01:43]}  Nb3 {[%clk 0:00:53]} 27. Rb1 {[%clk 0:01:42]}  Nxc1 {[%clk 0:00:53]} 28. Rxc1 {[%clk 0:01:42]}  fxe4 {[%clk 0:00:53]} 29. Rc7 {[%clk 0:01:41]}  b5 {[%clk 0:00:52]} 30. Bg2 {[%clk 0:01:41]}  f5 {[%clk 0:00:52]} 31. g4 {[%clk 0:01:41]}  Rf7 {[%clk 0:00:51]} 32. Rc5 {[%clk 0:01:40]}  g6 {[%clk 0:00:50]} 33. gxf5 {[%clk 0:01:39]}  gxf5 {[%clk 0:00:51]} 34. Bh3 {[%clk 0:01:40]}  Raf8 {[%clk 0:00:51]} 35. Kf2 {[%clk 0:01:40]}  f4 {[%clk 0:00:50]} 36. Be6 {[%clk 0:01:39]}  Kh8 {[%clk 0:00:40]} 37. Bxf7 {[%clk 0:01:39]}  Rxf7 {[%clk 0:00:41]} 38. Rc6 {[%clk 0:01:39]}  fxe3+ {[%clk 0:00:15]} 39. Kxe3 {[%clk 0:01:39]}  Rf3+ {[%clk 0:00:16]} 40. Kxe4 {[%clk 0:01:39]}  Ra3 {[%clk 0:00:16]} 41. Ke5 {[%clk 0:01:37]}  Kg7 {[%clk 0:00:17]} 42. h4 {[%clk 0:01:34]}  Rh3 {[%clk 0:00:16]} 43. Rc7+ {[%clk 0:01:26]}  Kg6 {[%clk 0:00:16]} 44. Rc6+ {[%clk 0:01:26]}  Kh5 {[%clk 0:00:16]} 45. Rc7 {[%clk 0:01:25]}  h6 {[%clk 0:00:16]} 46. Kd5 {[%clk 0:01:15]}  Rxh4 {[%clk 0:00:16]} 47. Kc5 {[%clk 0:01:13]}  Rc4+ {[%clk 0:00:16]} 48. Kb6 {[%clk 0:01:13]}  Rxc7 {[%clk 0:00:14]} 49. Kxc7 {[%clk 0:01:13]}  Kg6 {[%clk 0:00:14]} 50. Kb6 {[%clk 0:01:14]}  h5 {[%clk 0:00:15]} 51. Kxa6 {[%clk 0:01:15]}  h4 {[%clk 0:00:16]} 52. Kxb5 {[%clk 0:01:16]}  h3 {[%clk 0:00:17]} 53. Ka6 {[%clk 0:01:16]}  h2 {[%clk 0:00:18]} 54. b5 {[%clk 0:01:17]}  h1=Q {[%clk 0:00:19]} 55. b6 {[%clk 0:01:18]}  Qa8+ {[%clk 0:00:19]} 56. Kb5 {[%clk 0:01:19]}  Qb7 {[%clk 0:00:20]} 0-1


[Site "https://www.chess.com"]

[Event "Titled Tuesday Blitz February 22 Late 2022"]
[White "Al Hosani, Omran"]
[Black "Kozak, Adam"]
[WhiteFideId "9308733"]
[BlackFideId "753246"]
[WhiteElo "2554"]
[BlackElo "2824"]
[Result "0-1"]
[Round "02"]
[TimeControl "180+1"]
[Date "2022.02.23"]
[WhiteClock "0:00:01"]
[BlackClock "0:00:16"]

1. e4 {[%clk 0:03:00]}  c5 {[%clk 0:02:56]} 2. Nf3 {[%clk 0:02:57]}  Nf6 {[%clk 0:02:56]} 3. e5 {[%clk 0:02:54]}  Nd5 {[%clk 0:02:56]} 4. Nc3 {[%clk 0:02:55]}  Nc7 {[%clk 0:02:56]} 5. Ne4 {[%clk 0:02:34]}  b6 {[%clk 0:02:52]} 6. Bd3 {[%clk 0:02:26]}  Bb7 {[%clk 0:02:50]} 7. Qe2 {[%clk 0:02:20]}  Nc6 {[%clk 0:02:47]} 8. O-O {[%clk 0:02:18]}  Ne6 {[%clk 0:02:46]} 9. Nfg5 {[%clk 0:01:56]}  Nxe5 {[%clk 0:02:36]} 10. Nxe6 {[%clk 0:01:45]}  dxe6 {[%clk 0:02:23]} 11. Bb5+ {[%clk 0:01:44]}  Bc6 {[%clk 0:02:23]} 12. f4 {[%clk 0:01:33]}  Bxb5 {[%clk 0:02:20]} 13. Qxb5+ {[%clk 0:01:32]}  Qd7 {[%clk 0:02:21]} 14. Qe2 {[%clk 0:01:26]}  Nc6 {[%clk 0:02:19]} 15. d3 {[%clk 0:01:25]}  g6 {[%clk 0:02:19]} 16. Be3 {[%clk 0:01:24]}  Bg7 {[%clk 0:02:18]} 17. c3 {[%clk 0:01:24]}  O-O {[%clk 0:02:18]} 18. h4 {[%clk 0:01:24]}  Rad8 {[%clk 0:02:18]} 19. Rad1 {[%clk 0:01:23]}  h5 {[%clk 0:02:16]} 20. Ng5 {[%clk 0:01:19]}  Qd5 {[%clk 0:02:15]} 21. a3 {[%clk 0:01:10]}  Qf5 {[%clk 0:02:07]} 22. Ne4 {[%clk 0:00:52]}  Qg4 {[%clk 0:01:48]} 23. Qxg4 {[%clk 0:00:37]}  hxg4 {[%clk 0:01:49]} 24. b4 {[%clk 0:00:35]}  cxb4 {[%clk 0:01:27]} 25. axb4 {[%clk 0:00:36]}  Rd7 {[%clk 0:01:07]} 26. d4 {[%clk 0:00:31]}  f5 {[%clk 0:00:46]} 27. Ng5 {[%clk 0:00:31]}  Nd8 {[%clk 0:00:43]} 28. c4 {[%clk 0:00:29]}  Bf6 {[%clk 0:00:42]} 29. c5 {[%clk 0:00:23]}  Bxg5 {[%clk 0:00:39]} 30. fxg5 {[%clk 0:00:22]}  Rd5 {[%clk 0:00:36]} 31. b5 {[%clk 0:00:21]}  e5 {[%clk 0:00:35]} 32. dxe5 {[%clk 0:00:18]}  Rxe5 {[%clk 0:00:35]} 33. Bd4 {[%clk 0:00:14]}  Re4 {[%clk 0:00:35]} 34. c6 {[%clk 0:00:14]}  Ne6 {[%clk 0:00:34]} 35. Bc3 {[%clk 0:00:08]}  Nc7 {[%clk 0:00:34]} 36. Rd7 {[%clk 0:00:08]}  Nxb5 {[%clk 0:00:32]} 37. Ba1 {[%clk 0:00:08]}  Rc8 {[%clk 0:00:31]} 38. Rb1 {[%clk 0:00:09]}  a6 {[%clk 0:00:28]} 39. Kh2 {[%clk 0:00:09]}  Rxc6 {[%clk 0:00:27]} 40. Rd8+ {[%clk 0:00:09]}  Kf7 {[%clk 0:00:26]} 41. Rbd1 {[%clk 0:00:10]}  Rd6 {[%clk 0:00:26]} 42. R1xd6 {[%clk 0:00:09]}  Nxd6 {[%clk 0:00:26]} 43. Rh8 {[%clk 0:00:07]}  Re2 {[%clk 0:00:21]} 44. Rh7+ {[%clk 0:00:06]}  Ke6 {[%clk 0:00:22]} 45. h5 {[%clk 0:00:07]}  Ne4 {[%clk 0:00:15]} 46. hxg6 {[%clk 0:00:07]}  g3+ {[%clk 0:00:15]} 47. Kh3 {[%clk 0:00:07]}  Re1 {[%clk 0:00:16]} 48. Rxe7+ {[%clk 0:00:01]}  Kxe7 {[%clk 0:00:16]} 49. Bf6+ {[%clk 0:00:01]}  Kf8 {[%clk 0:00:15]} 50. g7+ {[%clk 0:00:01]}  Kg8 {[%clk 0:00:16]} 0-1


[Site "https://www.chess.com"]

[Event "Titled Tuesday Blitz February 22 Late 2022"]
[White "Andreikin, Dmitry"]
[Black "Golubka, Petro"]
[WhiteFideId "4158814"]
[BlackFideId "14114224"]
[WhiteElo "2736"]
[BlackElo "2392"]
[Result "1-0"]
[Round "02"]
[TimeControl "180+1"]
[Date "2022.02.22"]
[WhiteClock "0:00:22"]
[BlackClock "0:00:42"]

1. d4 {[%clk 0:03:00]}  d5 {[%clk 0:02:58]} 2. c4 {[%clk 0:03:00]}  e6 {[%clk 0:02:57]} 3. Nc3 {[%clk 0:03:00]}  Be7 {[%clk 0:02:55]} 4. Bf4 {[%clk 0:02:56]}  Nf6 {[%clk 0:02:50]} 5. e3 {[%clk 0:02:56]}  O-O {[%clk 0:02:49]} 6. Nf3 {[%clk 0:02:56]}  Nbd7 {[%clk 0:02:47]} 7. c5 {[%clk 0:02:56]}  c6 {[%clk 0:02:47]} 8. b4 {[%clk 0:02:51]}  b6 {[%clk 0:02:48]} 9. Be2 {[%clk 0:02:50]}  a5 {[%clk 0:02:48]} 10. a3 {[%clk 0:02:50]}  Bb7 {[%clk 0:02:35]} 11. O-O {[%clk 0:02:47]}  Re8 {[%clk 0:02:36]} 12. h3 {[%clk 0:02:41]}  g6 {[%clk 0:02:34]} 13. Qc2 {[%clk 0:02:31]}  Qc8 {[%clk 0:02:30]} 14. Rfc1 {[%clk 0:02:26]}  Bd8 {[%clk 0:02:27]} 15. Ne5 {[%clk 0:02:10]}  Nxe5 {[%clk 0:02:18]} 16. Bxe5 {[%clk 0:02:10]}  Nd7 {[%clk 0:02:19]} 17. Bd6 {[%clk 0:02:08]}  Be7 {[%clk 0:02:05]} 18. Bxe7 {[%clk 0:02:03]}  Rxe7 {[%clk 0:02:06]} 19. e4 {[%clk 0:01:56]}  axb4 {[%clk 0:01:46]} 20. axb4 {[%clk 0:01:54]}  bxc5 {[%clk 0:01:44]} 21. Rxa8 {[%clk 0:01:47]}  Qxa8 {[%clk 0:01:45]} 22. dxc5 {[%clk 0:01:36]}  Qa3 {[%clk 0:01:38]} 23. Rb1 {[%clk 0:01:28]}  Ba6 {[%clk 0:01:29]} 24. Rb3 {[%clk 0:01:25]}  Qa1+ {[%clk 0:01:28]} 25. Rb1 {[%clk 0:01:25]}  Qa3 {[%clk 0:01:28]} 26. Bxa6 {[%clk 0:01:07]}  Qxa6 {[%clk 0:01:29]} 27. exd5 {[%clk 0:00:59]}  exd5 {[%clk 0:01:28]} 28. b5 {[%clk 0:00:59]}  Qb7 {[%clk 0:01:15]} 29. Ne2 {[%clk 0:00:46]}  Nxc5 {[%clk 0:01:06]} 30. Nd4 {[%clk 0:00:44]}  Ne6 {[%clk 0:00:53]} 31. bxc6 {[%clk 0:00:38]}  Qc8 {[%clk 0:00:53]} 32. Nxe6 {[%clk 0:00:34]}  fxe6 {[%clk 0:00:48]} 33. Qc3 {[%clk 0:00:27]}  Rc7 {[%clk 0:00:44]} 34. Qe5 {[%clk 0:00:27]}  Kf7 {[%clk 0:00:43]} 35. Qxc7+ {[%clk 0:00:22]}  Qxc7 {[%clk 0:00:43]} 36. Rb7 {[%clk 0:00:22]}  Qe7 {[%clk 0:00:42]} 37. c7 {[%clk 0:00:22]} 1-0


[Site "https://www.chess.com"]